[Event "Vojvodina Open 2024-A 2024"]
[Site "Novi Sad"]
[Date "2024.06.25"]
[Round "2.15"]
[White "Leskur, Dejan"]
[Black "Vihaan Dumir"]
[Result "1/2-1/2"]
[ECO "C10"]
[WhiteElo "2227"]
[BlackElo "2032"]
[Annotator "RC"]
[PlyCount "96"]
[EventDate "2024.06.03"]
[EventType "swiss"]
[EventCountry "SRB"]
[SourceTitle "playchess.com"]
[Source "ChessBase"]
[SourceQuality "1"]
[TimeControl "40/5400+30:900+30"]

1. e4 {[%emt 0:00:03]} e6 {[%emt 0:00:07]} 2. d4 {[%emt 0:00:11]} d5 {[%emt 0:00:01]} 3. Nc3 {[%emt 0:00:09]} dxe4 {[%emt 0:00:06]} 4. Nxe4 {[%emt 0:00:04]} Bd7 {[%emt 0:00:08]} 5. Nf3 {[%emt 0:00:43]} Bc6 {[%emt 0:00:05]} 6. Bd3 {[%emt 0:00:25]} Nd7 {[%emt 0:00:06]} 7. O-O {[%emt 0:01:49]} Ngf6 {[%emt 0:00:06]} 8. Ned2 {[%emt 0:00:42]} Be7 {[%emt 0:00:09]} 9. Re1 {[%emt 0:00:50]} O-O {[%emt 0:00:20]} 10. Ne5 {[%emt 0:06:39]} Nxe5 {[%emt 0:00:37]} 11. dxe5 {[%emt 0:00:05]} Nd5 {[%emt 0:04:18]} 12. a3 {[%emt 0:01:33]} Nf4 {[%emt 0:01:38]} 13. Bf1 {[%emt 0:00:11]} Qd5 {[%emt 0:17:38]} 14. Qg4 {[%emt 0:03:38]} Ng6 {[%emt 0:02:48]} 15. c4 {[%emt 0:11:12]} Qd7 {[%emt 0:04:25]} 16. b4 {[%emt 0:08:00]} b6 {[%emt 0:00:13]} 17. Nb3 {[%emt 0:01:37]} Bb7 {[%emt 0:01:25]} 18. Bb2 {[%emt 0:00:30]} Rad8 {[%emt 0:00:33]} 19. b5 {[%emt 0:01:39]} a6 {[%emt 0:02:10]} 20. a4 {[%emt 0:00:14]} axb5 {[%emt 0:01:13]} 21. axb5 {[%emt 0:00:10]} c6 {[%emt 0:00:45]} 22. Nd4 {[%emt 0:09:08]} c5 {[%emt 0:00:31]} 23. Nb3 {[%emt 0:03:27]} Ra8 {[%emt 0:00:33]} 24. Bc3 {[%emt 0:10:16]} Rxa1 {[%emt 0:00:28]} 25. Rxa1 {[%emt 0:00:09]} Ra8 {[%emt 0:00:05]} 26. Rxa8+ {[%emt 0:00:39]} Bxa8 {[%emt 0:00:06]} 27. Qe2 {[%emt 0:01:25]} Bg5 {[%emt 0:02:19]} 28. Qd3 {[%emt 0:00:43]} Qxd3 {[%emt 0:00:25]} 29. Bxd3 {[%emt 0:00:09]} Nf4 {[%emt 0:01:05]} 30. Bd2 {[%emt 0:03:53]} Nxd3 {[%emt 0:01:36]} 31. Bxg5 {[%emt 0:00:05]} Nxe5 {[%emt 0:00:13]} 32. Nd2 {[%emt 0:00:04]} f6 {[%emt 0:00:14]} 33. Bf4 {[%emt 0:00:23]} Kf7 {[%emt 0:05:24]} 34. Bxe5 {[%emt 0:00:18]} fxe5 {[%emt 0:00:07]} 35. f3 {[%emt 0:00:06]} Kf6 {[%emt 0:02:22]} 36. Kf2 {[%emt 0:00:06]} Kf5 {[%emt 0:00:19]} 37. Ke3 {[%emt 0:00:06]} h5 {[%emt 0:00:58]} 38. h3 {[%emt 0:02:34]} h4 {[%emt 0:00:41]} 39. Ne4 {[%emt 0:03:25]} Bxe4 {[%emt 0:00:12]} 40. fxe4+ {[%emt 0:00:00]} Kg5 {[%emt 0:00:00]} 41. Kf3 {[%emt 0:00:11]} Kh5 {[%emt 0:00:36]} 42. Kf2 {[%emt 0:00:34]} g5 {[%emt 0:00:54]} 43. Kf3 {[%emt 0:00:37]} g4+ {[%emt 0:00:16]} 44. Kf2 {[%emt 0:00:14]} Kg5 {[%emt 0:00:07]} 45. Ke3 {[%emt 0:00:06]} Kh5 {[%emt 0:01:38]} 46. Ke2 {[%emt 0:00:13]} Kg5 {[%emt 0:00:59]} 47. Ke3 {[%emt 0:00:10]} g3 {[%emt 0:01:14]} 48. Kf3 {[%emt 0:00:08]} Kh5 {[%emt 0:00:07]} 1/2-1/2

[Event "Vojvodina Open 2024-A 2024"]
[Site "Novi Sad"]
[Date "2024.06.25"]
[Round "2.16"]
[White "Rindhiya V"]
[Black "Pranav K P"]
[Result "0-1"]
[ECO "C99"]
[WhiteElo "1965"]
[BlackElo "2223"]
[Annotator "RC"]
[PlyCount "74"]
[EventDate "2024.06.03"]
[EventType "swiss"]
[EventCountry "SRB"]
[SourceTitle "playchess.com"]
[Source "ChessBase"]
[SourceQuality "1"]
[TimeControl "40/5400+30:900+30"]

1. e4 {[%emt 0:00:02]} e5 {[%emt 0:00:01]} 2. Nf3 {[%emt 0:00:06]} Nc6 {[%emt 0:00:07]} 3. Bb5 {[%emt 0:00:03]} a6 {[%emt 0:00:12]} 4. Ba4 {[%emt 0:00:03]} Nf6 {[%emt 0:00:05]} 5. O-O {[%emt 0:00:12]} b5 {[%emt 0:00:02]} 6. Bb3 {[%emt 0:00:08]} Be7 {[%emt 0:00:07]} 7. Re1 {[%emt 0:00:22]} d6 {[%emt 0:00:06]} 8. c3 {[%emt 0:00:10]} O-O {[%emt 0:00:07]} 9. h3 {[%emt 0:00:06]} Na5 {[%emt 0:00:07]} 10. Bc2 {[%emt 0:00:04]} c5 {[%emt 0:00:03]} 11. d4 {[%emt 0:00:05]} Qc7 {[%emt 0:00:04]} 12. Nbd2 {[%emt 0:00:47]} cxd4 {[%emt 0:00:10]} 13. cxd4 {[%emt 0:00:04]} Nc6 {[%emt 0:00:03]} 14. Nb3 {[%emt 0:01:15]} a5 {[%emt 0:07:25]} 15. Be3 {[%emt 0:03:16]} a4 {[%emt 0:14:37]} 16. Nbd2 {[%emt 0:00:18]} Bd7 {[%emt 0:00:45]} 17. Rc1 {[%emt 0:06:21]} Qb7 {[%emt 0:00:54]} 18. dxe5 {[%emt 0:16:08]} dxe5 {[%emt 0:01:07]} 19. Bb1 {[%emt 0:03:57]} Rfd8 {[%emt 0:06:35]} 20. Qe2 {[%emt 0:03:59]} Rab8 {[%emt 0:04:33]} 21. Bc5 {[%emt 0:04:01]} Be8 {[%emt 0:01:43]} 22. Nf1 {[%emt 0:19:00]} g6 {[%emt 0:03:44]} 23. Ne3 {[%emt 0:09:20]} Nd4 {[%emt 0:09:30]} 24. Nxd4 {[%emt 0:05:02]} exd4 {[%emt 0:00:40]} 25. Ng4 {[%emt 0:13:07]} Nxg4 {[%emt 0:00:24]} 26. Qxg4 {[%emt 0:02:01]} Bd7 {[%emt 0:06:05]} 27. Qe2 {[%emt 0:04:16]} Be6 {[%emt 0:00:21]} 28. Bxe7 {[%emt 0:01:16]} Qxe7 {[%emt 0:00:03]} 29. Red1 {[%emt 0:01:34]} Bc4 {[%emt 0:00:47]} 30. Bd3 {[%emt 0:04:22]} Bxa2 {[%emt 0:00:33]} 31. Bxb5 {[%emt 0:00:02]} Qb4 {[%emt 0:01:03]} 32. Bc6 {[%emt 0:01:01]} Bb3 {[%emt 0:01:44]} 33. Rd2 {[%emt 0:02:02]} Rbc8 {[%emt 0:01:21]} 34. e5 {[%emt 0:01:32]} Bd5 {[%emt 0:01:50]} 35. Rdc2 {[%emt 0:01:23]} d3 {[%emt 0:00:29]} 36. Qxd3 {[%emt 0:00:05]} Bxc6 {[%emt 0:00:09]} 37. Qa6 {[%emt 0:00:19]} Qb7 {[%emt 0:00:11]} 0-1